[Event "Early-Titled-Tuesday-Blitz-February-06-2024"]
[Site "Chess.com"]
[Date "2024.02.06"]
[Round "2"]
[White "LikeWater"]
[Black "viktorgen2021"]
[Result "1-0"]
[WhiteElo "2824"]
[BlackElo "2571"]
[TimeControl "180+1"]
[EndTime "8:17:32 PST"]
[Termination "LikeWater won by resignation"]

1. g3 {[%clk 0:02:59.9]} 1... Nf6 {[%clk 0:02:57.1]} 2. Bg2 {[%clk 0:02:59]}
2... g6 {[%clk 0:02:52.8]} 3. b3 {[%clk 0:02:55.1]} 3... Bg7 {[%clk 0:02:53.1]}
4. Bb2 {[%clk 0:02:55.4]} 4... O-O {[%clk 0:02:53.7]} 5. e4 {[%clk 0:02:55.2]}
5... e5 {[%clk 0:02:41.9]} 6. Ne2 {[%clk 0:02:51.2]} 6... d5 {[%clk 0:02:41.9]}
7. exd5 {[%clk 0:02:49.7]} 7... Nxd5 {[%clk 0:02:34.9]} 8. O-O {[%clk
0:02:46.1]} 8... Nc6 {[%clk 0:02:35.1]} 9. Nbc3 {[%clk 0:02:41.4]} 9... Be6
{[%clk 0:02:34.9]} 10. Ne4 {[%clk 0:02:32.1]} 10... Qe7 {[%clk 0:02:32.8]} 11.
d4 {[%clk 0:02:26]} 11... f5 {[%clk 0:02:30.3]} 12. Nc5 {[%clk 0:02:24.7]} 12...
e4 {[%clk 0:02:24.7]} 13. Nxe6 {[%clk 0:02:16.8]} 13... Qxe6 {[%clk 0:02:19.7]}
14. c4 {[%clk 0:02:17.1]} 14... Ndb4 {[%clk 0:02:02.6]} 15. d5 {[%clk
0:02:16.2]} 15... Qe7 {[%clk 0:02:02.7]} 16. Bxg7 {[%clk 0:02:13.3]} 16... Qxg7
{[%clk 0:02:01.7]} 17. dxc6 {[%clk 0:02:11.4]} 17... Rad8 {[%clk 0:02:01.3]} 18.
Qc1 {[%clk 0:02:05.9]} 18... bxc6 {[%clk 0:01:58.8]} 19. Qc3 {[%clk 0:01:58.8]}
19... Qe7 {[%clk 0:01:52.9]} 20. Nf4 {[%clk 0:01:56.3]} 20... g5 {[%clk
0:01:50.8]} 21. Nh5 {[%clk 0:01:54.9]} 21... Rd3 {[%clk 0:01:51.4]} 22. Qb2
{[%clk 0:01:51.8]} 22... Rfd8 {[%clk 0:01:51.7]} 23. g4 {[%clk 0:01:46]} 23...
Rd2 {[%clk 0:01:42.9]} 24. Qc3 {[%clk 0:01:33.1]} 24... Rc2 {[%clk 0:00:50]} 25.
Qe3 {[%clk 0:01:09.7]} 25... Rd3 {[%clk 0:00:39.1]} 26. Qxa7 {[%clk 0:01:09.7]}
26... e3 {[%clk 0:00:35.7]} 27. a3 {[%clk 0:00:57.2]} 27... Rdd2 {[%clk
0:00:19.3]} 28. axb4 {[%clk 0:00:53.3]} 28... Rxf2 {[%clk 0:00:19.5]} 29. Qa8+
{[%clk 0:00:18.3]} 29... Kf7 {[%clk 0:00:18]} 30. Kh1 {[%clk 0:00:18.4]} 30...
Rxg2 {[%clk 0:00:11.4]} 31. Rxf5+ {[%clk 0:00:18.4]} 31... Ke6 {[%clk 0:00:12]}
32. Qc8+ {[%clk 0:00:16.3]} 32... Kd6 {[%clk 0:00:09.5]} 33. c5+ {[%clk
0:00:14.2]} 1-0

[Event "Early-Titled-Tuesday-Blitz-February-06-2024"]
[Site "Chess.com"]
[Date "2024.02.06"]
[Round "2"]
[White "Adar_07"]
[Black "chess_blitz00"]
[Result "1-0"]
[WhiteElo "2716"]
[BlackElo "2481"]
[TimeControl "180+1"]
[EndTime "8:17:32 PST"]
[Termination "Adar_07 won by checkmate"]

1. e4 {[%clk 0:03:00.9]} 1... e5 {[%clk 0:02:51.8]} 2. Nf3 {[%clk 0:03:00.8]}
2... Nc6 {[%clk 0:02:51.7]} 3. Bb5 {[%clk 0:03:00.2]} 3... a6 {[%clk 0:02:51.8]}
4. Ba4 {[%clk 0:02:59.3]} 4... f5 {[%clk 0:02:48.9]} 5. d3 {[%clk 0:02:53.9]}
5... b5 {[%clk 0:02:39.8]} 6. Bb3 {[%clk 0:02:52]} 6... Na5 {[%clk 0:02:40.1]}
7. Bxg8 {[%clk 0:02:50.5]} 7... Rxg8 {[%clk 0:02:39.6]} 8. Nxe5 {[%clk
0:02:46.5]} 8... Qe7 {[%clk 0:02:28.9]} 9. Nf3 {[%clk 0:02:44.9]} 9... fxe4
{[%clk 0:02:27.9]} 10. dxe4 {[%clk 0:02:45.8]} 10... Qxe4+ {[%clk 0:02:27.7]}
11. Be3 {[%clk 0:02:46]} 11... Nc4 {[%clk 0:02:13.7]} 12. O-O {[%clk 0:02:43.4]}
12... Nxe3 {[%clk 0:02:13.2]} 13. fxe3 {[%clk 0:02:43.2]} 13... Bb7 {[%clk
0:02:07.5]} 14. Qd2 {[%clk 0:01:54.2]} 14... Bc5 {[%clk 0:01:59.4]} 15. Nd4
{[%clk 0:01:45.3]} 15... O-O-O {[%clk 0:01:49.4]} 16. Nc3 {[%clk 0:01:43]} 16...
Qh4 {[%clk 0:01:38.7]} 17. a4 {[%clk 0:01:18.1]} 17... b4 {[%clk 0:01:33.7]} 18.
Nce2 {[%clk 0:01:16.7]} 18... Bd6 {[%clk 0:01:26.5]} 19. Nf4 {[%clk 0:01:13.5]}
19... Rdf8 {[%clk 0:01:04.5]} 20. Nf3 {[%clk 0:00:57.5]} 20... Qg4 {[%clk
0:00:37.1]} 21. Rae1 {[%clk 0:00:46.3]} 21... g5 {[%clk 0:00:31.3]} 22. Nd5
{[%clk 0:00:27]} 22... Qe4 {[%clk 0:00:18.8]} 23. c4 {[%clk 0:00:20.3]} 23... g4
{[%clk 0:00:07.1]} 24. Nh4 {[%clk 0:00:10]} 24... Bxh2+ {[%clk 0:00:03.8]} 25.
Kh1 {[%clk 0:00:08]} 25... g3 {[%clk 0:00:04.1]} 26. Rxf8+ {[%clk 0:00:02.8]}
26... Rxf8 {[%clk 0:00:04.4]} 27. Nf4 {[%clk 0:00:03.4]} 27... Qe7 {[%clk
0:00:02.5]} 28. Nf3 {[%clk 0:00:02.9]} 28... Bxf3 {[%clk 0:00:02.7]} 29. gxf3
{[%clk 0:00:03.8]} 29... Qh4 {[%clk 0:00:02.7]} 30. Kg2 {[%clk 0:00:04.4]} 30...
Qh6 {[%clk 0:00:02.6]} 31. Qd5 {[%clk 0:00:03.5]} 31... Bg1 {[%clk 0:00:02.6]}
32. Qa8# {[%clk 0:00:03.7]} 1-0

[Event "Early-Titled-Tuesday-Blitz-February-06-2024"]
[Site "Chess.com"]
[Date "2024.02.06"]
[Round "2"]
[White "Rawnsdale"]
[Black "N_I_Chess"]
[Result "0-1"]
[WhiteElo "2505"]
[BlackElo "2338"]
[TimeControl "180+1"]
[EndTime "8:17:33 PST"]
[Termination "N_I_Chess won by checkmate"]

1. e4 {[%clk 0:03:00.9]} 1... Nf6 {[%clk 0:02:56.4]} 2. e5 {[%clk 0:03:00.8]}
2... Nd5 {[%clk 0:02:48.2]} 3. d4 {[%clk 0:03:00.7]} 3... d6 {[%clk 0:02:48.5]}
4. c4 {[%clk 0:03:00.9]} 4... Nb6 {[%clk 0:02:48.5]} 5. Nf3 {[%clk 0:03:01.5]}
5... g6 {[%clk 0:02:40.6]} 6. Be2 {[%clk 0:02:57.4]} 6... Bg7 {[%clk 0:02:39.8]}
7. exd6 {[%clk 0:02:57.5]} 7... cxd6 {[%clk 0:02:39.5]} 8. O-O {[%clk
0:02:57.8]} 8... O-O {[%clk 0:02:36.9]} 9. Nc3 {[%clk 0:02:57.7]} 9... Bg4
{[%clk 0:02:35.7]} 10. b3 {[%clk 0:02:57.3]} 10... d5 {[%clk 0:02:31.9]} 11. c5
{[%clk 0:02:56.3]} 11... Nc8 {[%clk 0:02:32]} 12. Be3 {[%clk 0:02:36.9]} 12...
Nc6 {[%clk 0:02:30.2]} 13. h3 {[%clk 0:02:31.5]} 13... Bxf3 {[%clk 0:02:29.5]}
14. Bxf3 {[%clk 0:02:32.4]} 14... e6 {[%clk 0:02:30.4]} 15. b4 {[%clk
0:02:29.5]} 15... N8e7 {[%clk 0:02:01.2]} 16. b5 {[%clk 0:02:14.3]} 16... Na5
{[%clk 0:01:52.4]} 17. Be2 {[%clk 0:02:03.8]} 17... Nf5 {[%clk 0:01:50.5]} 18.
g4 {[%clk 0:01:01.5]} 18... Nxe3 {[%clk 0:01:49.7]} 19. fxe3 {[%clk 0:01:02.4]}
19... e5 {[%clk 0:01:33.5]} 20. Rc1 {[%clk 0:00:54.9]} 20... Bh6 {[%clk
0:01:16.8]} 21. Rf3 {[%clk 0:00:46.5]} 21... e4 {[%clk 0:00:28.9]} 22. Rg3
{[%clk 0:00:45.9]} 22... Qh4 {[%clk 0:00:27.7]} 23. Kg2 {[%clk 0:00:37.2]} 23...
Rad8 {[%clk 0:00:27]} 24. g5 {[%clk 0:00:37.4]} 24... Bxg5 {[%clk 0:00:24.5]}
25. Rg4 {[%clk 0:00:20.6]} 25... Qh6 {[%clk 0:00:24.5]} 26. Qf1 {[%clk
0:00:16.6]} 26... Bxe3 {[%clk 0:00:24]} 27. Rd1 {[%clk 0:00:17.1]} 27... Qg7
{[%clk 0:00:22.7]} 28. b6 {[%clk 0:00:15.1]} 28... axb6 {[%clk 0:00:21.2]} 29.
cxb6 {[%clk 0:00:16]} 29... Bxd4 {[%clk 0:00:20.7]} 30. Nb5 {[%clk 0:00:15.8]}
30... Bxb6 {[%clk 0:00:20.2]} 31. a4 {[%clk 0:00:15]} 31... Nc6 {[%clk
0:00:20.4]} 32. Rg3 {[%clk 0:00:15.2]} 32... Ne5 {[%clk 0:00:20.4]} 33. h4
{[%clk 0:00:15.6]} 33... d4 {[%clk 0:00:20.9]} 34. Bg4 {[%clk 0:00:15]} 34... f5
{[%clk 0:00:20.9]} 35. Bh3 {[%clk 0:00:15.2]} 35... f4 {[%clk 0:00:20.5]} 36.
Rg5 {[%clk 0:00:15.6]} 36... f3+ {[%clk 0:00:20.9]} 37. Kh1 {[%clk 0:00:16]}
37... Qf6 {[%clk 0:00:18.5]} 38. Re1 {[%clk 0:00:14.9]} 38... Qf4 {[%clk
0:00:17.7]} 39. Rg4 {[%clk 0:00:14.3]} 39... Nxg4 {[%clk 0:00:17.6]} 40. Bxg4
{[%clk 0:00:14.6]} 40... Qxg4 {[%clk 0:00:18.2]} 41. Qc4+ {[%clk 0:00:15.1]}
41... Kh8 {[%clk 0:00:18.1]} 42. Rg1 {[%clk 0:00:12.1]} 42... Qh3# {[%clk
0:00:18]} 0-1

[Event "Early-Titled-Tuesday-Blitz-February-06-2024"]
[Site "Chess.com"]
[Date "2024.02.06"]
[Round "2"]
[White "Goryachkina"]
[Black "alekroth65"]
[Result "1-0"]
[WhiteElo "2671"]
[BlackElo "2368"]
[TimeControl "180+1"]
[EndTime "8:17:35 PST"]
[Termination "Goryachkina won by resignation"]

1. e4 {[%clk 0:03:00.1]} 1... e5 {[%clk 0:02:59.2]} 2. Nf3 {[%clk 0:03:00]} 2...
Nc6 {[%clk 0:02:59.2]} 3. d4 {[%clk 0:03:00.2]} 3... exd4 {[%clk 0:02:57.8]} 4.
Nxd4 {[%clk 0:03:01.1]} 4... Bc5 {[%clk 0:02:56.1]} 5. Be3 {[%clk 0:03:00.3]}
5... Qf6 {[%clk 0:02:54.4]} 6. c3 {[%clk 0:03:00.4]} 6... Nge7 {[%clk
0:02:53.1]} 7. Bb5 {[%clk 0:03:00.2]} 7... Bb6 {[%clk 0:02:46]} 8. O-O {[%clk
0:02:58.4]} 8... O-O {[%clk 0:02:44.1]} 9. a4 {[%clk 0:02:58.3]} 9... Qg6 {[%clk
0:02:29]} 10. Nd2 {[%clk 0:02:54.6]} 10... a6 {[%clk 0:02:13.5]} 11. Bc4 {[%clk
0:02:51.6]} 11... Ne5 {[%clk 0:02:07.5]} 12. Be2 {[%clk 0:02:51.3]} 12... d5
{[%clk 0:01:59.2]} 13. a5 {[%clk 0:02:50.6]} 13... Ba7 {[%clk 0:01:55.1]} 14.
N4f3 {[%clk 0:02:28.6]} 14... Nxf3+ {[%clk 0:01:45.1]} 15. Bxf3 {[%clk
0:02:28.3]} 15... Bxe3 {[%clk 0:01:35]} 16. fxe3 {[%clk 0:02:29.2]} 16... dxe4
{[%clk 0:01:34.8]} 17. Nxe4 {[%clk 0:02:29.9]} 17... Bf5 {[%clk 0:01:26.4]} 18.
Ng3 {[%clk 0:02:29.9]} 18... Rad8 {[%clk 0:01:23.4]} 19. Qc1 {[%clk 0:02:27.3]}
19... Bd3 {[%clk 0:01:20]} 20. Rd1 {[%clk 0:02:27.3]} 20... c6 {[%clk 0:01:19]}
21. e4 {[%clk 0:02:22.4]} 21... Bc4 {[%clk 0:01:18.4]} 22. Qe3 {[%clk
0:02:16.5]} 22... Nc8 {[%clk 0:01:07.3]} 23. Rd4 {[%clk 0:02:13.7]} 23... Be6
{[%clk 0:01:02.2]} 24. Rad1 {[%clk 0:02:12.9]} 24... Qf6 {[%clk 0:01:02]} 25. b4
{[%clk 0:02:02.4]} 25... Bb3 {[%clk 0:00:57.4]} 26. R1d2 {[%clk 0:02:02.1]}
26... Rxd4 {[%clk 0:00:51.1]} 27. cxd4 {[%clk 0:02:01.5]} 27... Bc4 {[%clk
0:00:50.5]} 28. e5 {[%clk 0:01:51.7]} 28... Qe6 {[%clk 0:00:48.3]} 29. h3 {[%clk
0:01:50.4]} 29... Ne7 {[%clk 0:00:46.2]} 30. Kh2 {[%clk 0:01:38.1]} 30... f5
{[%clk 0:00:42.4]} 31. Nh5 {[%clk 0:01:31.3]} 31... Nd5 {[%clk 0:00:38.4]} 32.
Bxd5 {[%clk 0:01:31.1]} 32... Bxd5 {[%clk 0:00:36.8]} 33. Qg5 {[%clk 0:01:19.3]}
33... Qg6 {[%clk 0:00:35.2]} 34. Qxg6 {[%clk 0:01:19.6]} 34... hxg6 {[%clk
0:00:34]} 35. Nf4 {[%clk 0:01:20]} 35... Bf7 {[%clk 0:00:32]} 36. h4 {[%clk
0:01:19.7]} 36... Rd8 {[%clk 0:00:28]} 37. Kg3 {[%clk 0:01:19.7]} 37... Kh7
{[%clk 0:00:26.9]} 38. Nh3 {[%clk 0:01:10.9]} 38... Bd5 {[%clk 0:00:26]} 39. Kf4
{[%clk 0:01:09.7]} 39... Kh6 {[%clk 0:00:25.4]} 40. g3 {[%clk 0:01:08.5]} 40...
Kh5 {[%clk 0:00:23.3]} 41. Ng5 {[%clk 0:01:08.4]} 41... Rf8 {[%clk 0:00:22.1]}
42. Re2 {[%clk 0:01:07.2]} 42... Re8 {[%clk 0:00:20.9]} 43. e6 {[%clk
0:01:05.1]} 43... Re7 {[%clk 0:00:20.3]} 44. Re3 {[%clk 0:01:05.2]} 44... Re8
{[%clk 0:00:19]} 45. Ke5 {[%clk 0:01:04.7]} 45... Kg4 {[%clk 0:00:18.6]} 46. Kd6
{[%clk 0:01:04]} 46... f4 {[%clk 0:00:15.8]} 47. gxf4 {[%clk 0:01:04]} 47...
Kxf4 {[%clk 0:00:15.8]} 48. Re1 {[%clk 0:01:04.3]} 48... Kg4 {[%clk 0:00:15.2]}
49. e7 {[%clk 0:01:04.6]} 49... Kxh4 {[%clk 0:00:14.4]} 50. Ne6 {[%clk
0:01:04.6]} 50... Bxe6 {[%clk 0:00:12.6]} 51. Kxe6 {[%clk 0:01:04.2]} 51... g5
{[%clk 0:00:13]} 52. Kf7 {[%clk 0:01:04.3]} 52... Rh8 {[%clk 0:00:09.9]} 53.
Rh1+ {[%clk 0:01:00.4]} 1-0

[Event "Early-Titled-Tuesday-Blitz-February-06-2024"]
[Site "Chess.com"]
[Date "2024.02.06"]
[Round "2"]
[White "bennyficial"]
[Black "mbchess97"]
[Result "0-1"]
[WhiteElo "2121"]
[BlackElo "2432"]
[TimeControl "180+1"]
[EndTime "8:17:36 PST"]
[Termination "mbchess97 won on time"]

1. Nf3 {[%clk 0:03:00.9]} 1... Nf6 {[%clk 0:02:57.1]} 2. c4 {[%clk 0:03:00.3]}
2... e6 {[%clk 0:02:56.3]} 3. b3 {[%clk 0:02:58.9]} 3... d5 {[%clk 0:02:55.4]}
4. e3 {[%clk 0:02:58.3]} 4... c5 {[%clk 0:02:47.3]} 5. cxd5 {[%clk 0:02:58.7]}
5... Nxd5 {[%clk 0:02:46.3]} 6. Bb5+ {[%clk 0:02:57.2]} 6... Bd7 {[%clk
0:02:45.8]} 7. Bxd7+ {[%clk 0:02:55.9]} 7... Nxd7 {[%clk 0:02:41]} 8. Bb2 {[%clk
0:02:52]} 8... N7f6 {[%clk 0:02:40]} 9. O-O {[%clk 0:02:48.1]} 9... Bd6 {[%clk
0:02:39.9]} 10. a3 {[%clk 0:02:43.2]} 10... O-O {[%clk 0:02:27]} 11. Nc3 {[%clk
0:02:41]} 11... Nxc3 {[%clk 0:02:19.6]} 12. Bxc3 {[%clk 0:02:41.9]} 12... a5
{[%clk 0:02:14.8]} 13. Qc2 {[%clk 0:02:38.6]} 13... Nd5 {[%clk 0:02:08]} 14. Be5
{[%clk 0:02:23.2]} 14... b5 {[%clk 0:01:37.3]} 15. Rfc1 {[%clk 0:01:59.8]} 15...
Rc8 {[%clk 0:01:36.6]} 16. Qe4 {[%clk 0:01:56.6]} 16... Bxe5 {[%clk 0:01:28.9]}
17. Nxe5 {[%clk 0:01:55.7]} 17... Nf6 {[%clk 0:01:28.5]} 18. Qc2 {[%clk
0:01:50]} 18... Qd5 {[%clk 0:01:24.7]} 19. Qb2 {[%clk 0:01:29.2]} 19... Rfd8
{[%clk 0:01:20.7]} 20. Rc2 {[%clk 0:01:27.8]} 20... Ne4 {[%clk 0:01:13]} 21. d3
{[%clk 0:01:27.8]} 21... Nf6 {[%clk 0:01:06.5]} 22. Rac1 {[%clk 0:01:24.5]}
22... Nd7 {[%clk 0:00:59.3]} 23. Nxd7 {[%clk 0:00:57.5]} 23... Rxd7 {[%clk
0:01:00.2]} 24. Rd2 {[%clk 0:00:39.1]} 24... c4 {[%clk 0:00:50.5]} 25. bxc4
{[%clk 0:00:37]} 25... bxc4 {[%clk 0:00:50.4]} 26. d4 {[%clk 0:00:37.2]} 26...
Rb7 {[%clk 0:00:48.1]} 27. Qc2 {[%clk 0:00:32.4]} 27... c3 {[%clk 0:00:45.3]}
28. Rd3 {[%clk 0:00:31.3]} 28... Rb3 {[%clk 0:00:44.6]} 29. h3 {[%clk
0:00:26.5]} 29... h6 {[%clk 0:00:43.7]} 30. Qa2 {[%clk 0:00:17.5]} 30... Qb5
{[%clk 0:00:41.7]} 31. Rdd1 {[%clk 0:00:12.9]} 31... Rb2 {[%clk 0:00:37.5]} 32.
Qa1 {[%clk 0:00:10.6]} 32... Qe2 {[%clk 0:00:37.4]} 33. Rf1 {[%clk 0:00:09.7]}
33... Qd2 {[%clk 0:00:29.4]} 34. a4 {[%clk 0:00:09.3]} 34... Rcb8 {[%clk
0:00:29.1]} 35. Qa3 {[%clk 0:00:08]} 35... R2b3 {[%clk 0:00:25.8]} 36. Qd6
{[%clk 0:00:07.7]} 36... c2 {[%clk 0:00:24.1]} 37. g3 {[%clk 0:00:05.6]} 37...
Rb1 {[%clk 0:00:23.7]} 38. Kg2 {[%clk 0:00:03.8]} 38... R1b4 {[%clk 0:00:16.8]}
39. Qc7 {[%clk 0:00:02.7]} 39... Rb2 {[%clk 0:00:14.4]} 0-1

[Event "Early-Titled-Tuesday-Blitz-February-06-2024"]
[Site "Chess.com"]
[Date "2024.02.06"]
[Round "2"]
[White "Statham_01"]
[Black "Al_Shima"]
[Result "1-0"]
[WhiteElo "2531"]
[BlackElo "2335"]
[TimeControl "180+1"]
[EndTime "8:17:37 PST"]
[Termination "Statham_01 won by checkmate"]

1. e4 {[%clk 0:03:00.9]} 1... c5 {[%clk 0:03:00.6]} 2. Nf3 {[%clk 0:03:00]} 2...
e6 {[%clk 0:03:01]} 3. c3 {[%clk 0:03:00]} 3... Nf6 {[%clk 0:03:00.4]} 4. e5
{[%clk 0:02:59.8]} 4... Nd5 {[%clk 0:03:00.8]} 5. d4 {[%clk 0:03:00.7]} 5...
cxd4 {[%clk 0:03:00.6]} 6. cxd4 {[%clk 0:03:01.6]} 6... Nc6 {[%clk 0:03:01.2]}
7. Nc3 {[%clk 0:03:01.5]} 7... Nxc3 {[%clk 0:03:01]} 8. bxc3 {[%clk 0:03:02.4]}
8... d6 {[%clk 0:03:01.6]} 9. exd6 {[%clk 0:03:00]} 9... Bxd6 {[%clk 0:03:01.6]}
10. Bd3 {[%clk 0:03:00.6]} 10... h6 {[%clk 0:03:01.4]} 11. Qe2 {[%clk
0:02:59.2]} 11... O-O {[%clk 0:03:01.7]} 12. O-O {[%clk 0:02:48.2]} 12... Re8
{[%clk 0:02:56.1]} 13. Ne5 {[%clk 0:02:42.9]} 13... Bxe5 {[%clk 0:02:29.6]} 14.
dxe5 {[%clk 0:02:43.8]} 14... Nxe5 {[%clk 0:02:30.5]} 15. Rd1 {[%clk 0:02:02.6]}
15... Nxd3 {[%clk 0:02:27.3]} 16. Rxd3 {[%clk 0:02:03.5]} 16... Qf6 {[%clk
0:02:11.8]} 17. Rf3 {[%clk 0:01:55.4]} 17... Qg6 {[%clk 0:01:27.4]} 18. Rg3
{[%clk 0:01:51.1]} 18... Qf6 {[%clk 0:01:27]} 19. Qh5 {[%clk 0:01:27.3]} 19...
Kh7 {[%clk 0:01:16.5]} 20. Rf3 {[%clk 0:00:54.1]} 20... Qg6 {[%clk 0:01:11.6]}
21. Qe5 {[%clk 0:00:48]} 21... f6 {[%clk 0:00:58.4]} 22. Qb5 {[%clk 0:00:48.1]}
22... a6 {[%clk 0:00:51]} 23. Qe2 {[%clk 0:00:47.4]} 23... e5 {[%clk 0:00:30.1]}
24. Rg3 {[%clk 0:00:47.7]} 24... Qf5 {[%clk 0:00:28.1]} 25. Be3 {[%clk
0:00:41.4]} 25... Bd7 {[%clk 0:00:26.9]} 26. Rf3 {[%clk 0:00:39.3]} 26... Qe4
{[%clk 0:00:20.9]} 27. Rg3 {[%clk 0:00:38.1]} 27... Bc6 {[%clk 0:00:20.3]} 28.
Qh5 {[%clk 0:00:35]} 28... Re7 {[%clk 0:00:11.9]} 29. Rd1 {[%clk 0:00:31.5]}
29... Rc8 {[%clk 0:00:06.9]} 30. h4 {[%clk 0:00:30.6]} 30... b5 {[%clk
0:00:05.5]} 31. a3 {[%clk 0:00:30.1]} 31... Bb7 {[%clk 0:00:05.7]} 32. Kh2
{[%clk 0:00:25.9]} 32... a5 {[%clk 0:00:04.9]} 33. Rd6 {[%clk 0:00:24.8]} 33...
Rc6 {[%clk 0:00:03.7]} 34. Rd8 {[%clk 0:00:19.6]} 34... Rce6 {[%clk 0:00:01.7]}
35. Rxg7+ {[%clk 0:00:17.4]} 35... Kxg7 {[%clk 0:00:01.1]} 36. Qxh6+ {[%clk
0:00:17.6]} 36... Kf7 {[%clk 0:00:01.4]} 37. Rf8# {[%clk 0:00:18.2]} 1-0

[Event "Early-Titled-Tuesday-Blitz-February-06-2024"]
[Site "Chess.com"]
[Date "2024.02.06"]
[Round "2"]
[White "Ezov"]
[Black "VinzentSpitzl"]
[Result "0-1"]
[WhiteElo "2183"]
[BlackElo "2451"]
[TimeControl "180+1"]
[EndTime "8:17:38 PST"]
[Termination "VinzentSpitzl won by resignation"]

1. d4 {[%clk 0:02:04.7]} 1... Nf6 {[%clk 0:02:52.8]} 2. Nc3 {[%clk 0:02:02.9]}
2... d5 {[%clk 0:02:52.5]} 3. Bf4 {[%clk 0:02:01]} 3... c5 {[%clk 0:02:52.9]} 4.
e3 {[%clk 0:01:58.9]} 4... a6 {[%clk 0:02:53]} 5. Qd2 {[%clk 0:01:57.6]} 5...
Nc6 {[%clk 0:02:49.9]} 6. O-O-O {[%clk 0:01:56.1]} 6... e6 {[%clk 0:02:47.2]} 7.
f3 {[%clk 0:01:54.5]} 7... cxd4 {[%clk 0:02:43.3]} 8. exd4 {[%clk 0:01:55.4]}
8... Bd6 {[%clk 0:02:43.9]} 9. g4 {[%clk 0:01:53.8]} 9... b5 {[%clk 0:02:40.4]}
10. Nh3 {[%clk 0:01:50.6]} 10... O-O {[%clk 0:02:29.7]} 11. Rg1 {[%clk
0:01:31.2]} 11... b4 {[%clk 0:02:23.5]} 12. Na4 {[%clk 0:01:28.5]} 12... a5
{[%clk 0:02:20]} 13. g5 {[%clk 0:01:23.9]} 13... Ne8 {[%clk 0:02:13.9]} 14. Nc5
{[%clk 0:01:20]} 14... Bxc5 {[%clk 0:01:56.2]} 15. dxc5 {[%clk 0:01:20.9]} 15...
e5 {[%clk 0:01:56.4]} 16. Bg3 {[%clk 0:01:17.8]} 16... Nc7 {[%clk 0:01:49.9]}
17. f4 {[%clk 0:01:14]} 17... e4 {[%clk 0:01:43]} 18. Nf2 {[%clk 0:00:55.9]}
18... Bf5 {[%clk 0:01:36.4]} 19. Bh3 {[%clk 0:00:49.4]} 19... Qd7 {[%clk
0:01:14.6]} 20. Bxf5 {[%clk 0:00:47.1]} 20... Qxf5 {[%clk 0:01:15.5]} 21. Qe2
{[%clk 0:00:37.3]} 21... Rfe8 {[%clk 0:00:54.6]} 22. Qg4 {[%clk 0:00:34.2]}
22... Qxg4 {[%clk 0:00:54.9]} 23. Nxg4 {[%clk 0:00:34.7]} 23... d4 {[%clk
0:00:54.8]} 24. Ne5 {[%clk 0:00:31.1]} 24... Nxe5 {[%clk 0:00:52.7]} 25. fxe5
{[%clk 0:00:32]} 25... Ne6 {[%clk 0:00:53.2]} 26. h4 {[%clk 0:00:27.4]} 26...
Rac8 {[%clk 0:00:50.1]} 27. Rge1 {[%clk 0:00:18.3]} 27... e3 {[%clk 0:00:49.1]}
28. Kb1 {[%clk 0:00:09.5]} 28... Rxc5 {[%clk 0:00:48.9]} 29. Rd3 {[%clk
0:00:07]} 29... Rec8 {[%clk 0:00:46.1]} 30. Re2 {[%clk 0:00:04.8]} 30... Kf8
{[%clk 0:00:44]} 31. b3 {[%clk 0:00:01.8]} 31... Ke7 {[%clk 0:00:42.3]} 32. Kb2
{[%clk 0:00:02.6]} 32... Rc3 {[%clk 0:00:40.3]} 33. a3 {[%clk 0:00:02.9]} 33...
Rxd3 {[%clk 0:00:38.7]} 34. cxd3 {[%clk 0:00:03.5]} 34... Rc3 {[%clk 0:00:39.3]}
35. axb4 {[%clk 0:00:02.7]} 35... axb4 {[%clk 0:00:39.9]} 36. h5 {[%clk
0:00:01.7]} 36... Rxd3 {[%clk 0:00:38.5]} 37. g6 {[%clk 0:00:01.1]} 0-1

[Event "Early-Titled-Tuesday-Blitz-February-06-2024"]
[Site "Chess.com"]
[Date "2024.02.06"]
[Round "2"]
[White "LeRoidesChampions"]
[Black "Elsa167"]
[Result "1-0"]
[WhiteElo "2618"]
[BlackElo "2877"]
[TimeControl "180+1"]
[EndTime "8:17:41 PST"]
[Termination "LeRoidesChampions won on time"]

1. d4 {[%clk 0:03:00.6]} 1... Nf6 {[%clk 0:02:56.7]} 2. c4 {[%clk 0:02:59.8]}
2... g6 {[%clk 0:02:56.8]} 3. Nc3 {[%clk 0:02:59.8]} 3... Bg7 {[%clk 0:02:57]}
4. e4 {[%clk 0:02:59.5]} 4... d6 {[%clk 0:02:57.4]} 5. h3 {[%clk 0:03:00]} 5...
O-O {[%clk 0:02:57.3]} 6. Nf3 {[%clk 0:03:00.5]} 6... e5 {[%clk 0:02:55.9]} 7.
d5 {[%clk 0:03:00.5]} 7... a5 {[%clk 0:02:55.1]} 8. Be3 {[%clk 0:02:57.3]} 8...
Na6 {[%clk 0:02:55.1]} 9. Nd2 {[%clk 0:02:57.3]} 9... Nc5 {[%clk 0:02:50.2]} 10.
g4 {[%clk 0:02:56.9]} 10... Bd7 {[%clk 0:02:47.2]} 11. f3 {[%clk 0:02:57.1]}
11... c6 {[%clk 0:02:20.7]} 12. h4 {[%clk 0:02:51.3]} 12... Qb6 {[%clk
0:02:09.7]} 13. Na4 {[%clk 0:02:46.7]} 13... Nd3+ {[%clk 0:01:31.1]} 14. Ke2
{[%clk 0:02:45.4]} 14... Qa6 {[%clk 0:01:31.5]} 15. Kxd3 {[%clk 0:02:42.5]}
15... cxd5 {[%clk 0:01:28.7]} 16. Nb6 {[%clk 0:01:59.3]} 16... d4 {[%clk
0:01:10]} 17. Nxd7 {[%clk 0:01:57.5]} 17... Nxd7 {[%clk 0:01:09.4]} 18. Bf2
{[%clk 0:01:56.9]} 18... b5 {[%clk 0:00:58.5]} 19. Ke2 {[%clk 0:01:36.4]} 19...
bxc4 {[%clk 0:00:58]} 20. Ke1 {[%clk 0:01:37]} 20... d3 {[%clk 0:00:53.1]} 21.
Rc1 {[%clk 0:01:35.9]} 21... Rac8 {[%clk 0:00:47.1]} 22. Be3 {[%clk 0:01:33.4]}
22... d5 {[%clk 0:00:42.2]} 23. exd5 {[%clk 0:01:24.9]} 23... e4 {[%clk
0:00:42.1]} 24. Nxe4 {[%clk 0:01:13.6]} 24... f5 {[%clk 0:00:39.6]} 25. gxf5
{[%clk 0:01:11.3]} 25... gxf5 {[%clk 0:00:38.8]} 26. Ng5 {[%clk 0:00:54.9]}
26... f4 {[%clk 0:00:39]} 27. Bd2 {[%clk 0:00:51]} 27... Qb6 {[%clk 0:00:30.7]}
28. Ne6 {[%clk 0:00:47.5]} 28... Rfe8 {[%clk 0:00:14.3]} 29. Bh3 {[%clk
0:00:47.7]} 29... Bf6 {[%clk 0:00:07.7]} 30. Kf1 {[%clk 0:00:45.9]} 30... Kh8
{[%clk 0:00:07.4]} 31. Qe1 {[%clk 0:00:39.9]} 31... Ne5 {[%clk 0:00:03.7]} 32.
Bc3 {[%clk 0:00:39.3]} 32... Qe3 {[%clk 0:00:02]} 33. Qxe3 {[%clk 0:00:33.5]}
33... fxe3 {[%clk 0:00:02.4]} 34. f4 {[%clk 0:00:34.4]} 34... Nd7 {[%clk
0:00:01.8]} 35. Rg1 {[%clk 0:00:28.8]} 35... Bxc3 {[%clk 0:00:01.2]} 36. Rxc3
{[%clk 0:00:29.7]} 36... Nf6 {[%clk 0:00:01.7]} 37. Ng5 {[%clk 0:00:25.8]} 37...
Rf8 {[%clk 0:00:01.1]} 38. Bxc8 {[%clk 0:00:25.4]} 1-0